bitfinex/quotes_ETHUSD_20250425
["timestamp","ask_amount","ask_price","bid_price","bid_amount"]
[1745592483376,0.005,1801.8,1800.5,3.55]
[1745592483717,0.005,1801.8,1800.8,9.42373488]
[1745592483932,0.005,1801.8,1801.0,0.55]
[1745592484140,0.005,1801.8,1801.2,0.55]
[1745592484428,3.005,1801.8,1800.8,9.476]
[1745592484578,5.55256195,1801.0,1800.8,9.476]
[1745592484774,5.55277916,1800.9,1799.8,2.67535384]
[1745592484978,5.5533959,1800.7,1800.3,9.472]
[1745592485173,5.55432126,1800.4,1800.3,9.472]
[1745592485388,5.55541616,1800.1,1799.8,16.664]
[1745592485783,5.55541616,1800.1,1799.1,0.05]
[1745592485784,5.55528984,1800.1,1799.1,0.05]
[1745592486012,3.0,1799.9,1799.1,9.522]
[1745592486213,5.55619347,1799.8,1799.1,9.522]
[1745592486422,5.556337,1799.8,1799.1,12.1406]
[1745592486787,0.7731,1800.0,1799.1,12.1406]
[1745592486985,5.55723899,1799.5,1799.1,9.522]
[1745592487186,5.55664152,1799.7,1799.1,9.522]
[1745592487996,5.55724383,1799.5,1799.1,9.522]
[1745592488338,5.55802578,1799.2,1799.1,9.522]
[1745592489003,3.8184,1799.4,1798.6,9.472]
[1745592489203,5.55915497,1798.9,1798.6,9.472]
[1745592489527,5.55878459,1799.0,1798.6,9.472]
[1745592489731,5.55794514,1799.3,1798.6,9.472]
[1745592490027,5.55824504,1799.2,1798.7,0.05558036]
[1745592490228,1.24976635,1799.7,1798.7,0.05558036]
[1745592490535,5.55737129,1799.5,1798.7,0.95275804]
[1745592490710,5.55743054,1799.4,1798.7,0.95275804]
[1745592491033,5.55815694,1799.2,1798.6,9.472]
[1745592491231,5.557133,1799.5,1798.6,9.472]
[1745592491414,5.55666538,1799.7,1798.7,0.0555733]
[1745592491737,0.7576,1800.3,1798.8,0.55]
[1745592491937,5.5565399,1799.7,1798.6,9.472]
[1745592492140,5.55700072,1799.6,1798.7,1.00275417]
[1745592492290,0.55565399,1799.7,1798.7,1.00275417]
[1745592492490,5.5571055,1799.5,1798.8,0.05557129]
[1745592492717,5.55709919,1799.5,1798.7,0.0555771]
[1745592492931,5.55857138,1799.1,1798.6,9.472]
[1745592493247,5.55919899,1798.9,1798.6,9.472]
[1745592493603,5.55805796,1799.2,1798.6,9.472]
[1745592493804,5.55941528,1798.8,1798.6,9.472]
[1745592494050,5.55926173,1798.8,1798.3,16.666]
[1745592494199,5.5593771,1798.8,1798.3,16.666]
[1745592494401,3.0,1798.9,1798.3,16.666]
[1745592494604,5.55947836,1798.8,1798.3,16.666]
[1745592494804,5.56008525,1798.6,1798.3,16.666]
[1745592495052,3.0,1798.9,1798.3,16.666]
[1745592495204,5.55926173,1798.8,1798.3,16.666]
[1745592495400,4.18737349,1798.9,1798.3,16.666]
[1745592495401,5.56022092,1798.5,1798.3,16.666]
[1745592495843,4.18737349,1798.9,1798.3,16.666]
[1745592495844,5.55941543,1798.8,1798.3,16.666]
[1745592496027,1.18737349,1798.9,1798.3,16.666]
[1745592496228,3.7576,1799.2,1798.4,0.05560214]
[1745592496229,0.7576,1799.2,1798.4,0.05560214]
[1745592496431,0.7576,1799.2,1798.4,1.72774812]
[1745592496871,6.31564531,1799.2,1798.4,1.67216021]
[1745592497082,5.55946654,1798.8,1798.3,16.666]
[1745592497246,5.5597101,1798.7,1798.3,16.666]
[1745592497446,5.55968377,1798.7,1798.3,16.666]
[1745592497748,5.55909348,1798.9,1798.1,9.3373528]
[1745592497945,3.0,1798.9,1798.1,9.3373528]
[1745592498172,9.41485587,1798.9,1798.1,9.3373528]
[1745592498379,5.55970007,1798.7,1798.1,9.3373528]
[1745592498557,9.34400953,1798.6,1798.1,9.3373528]
[1745592498758,3.784,1798.6,1798.1,9.3373528]
[1745592498956,0.784,1798.6,1798.1,9.3373528]
[1745592499184,3.784,1798.6,1798.1,9.3373528]
[1745592499362,0.3784,1798.5,1798.1,0.1203528]
[1745592499557,5.56154135,1798.1,1797.6,16.673]
[1745592499766,5.56154135,1798.1,1796.3,9.29211718]
[1745592499767,0.7644,1798.1,1796.3,9.29211718]
[1745592499994,3.0,1798.0,1796.7,16.675]
[1745592500161,0.7644,1797.9,1796.8,9.27364209]
[1745592500357,1.14084,1797.9,1796.8,9.27364209]
[1745592500558,3.0,1798.3,1796.8,9.27364209]
[1745592500763,0.7644,1798.4,1797.0,0.55]
[1745592500998,0.7644,1798.4,1797.2,0.05562382]
[1745592501174,0.7644,1798.4,1797.3,0.55]
[1745592501492,0.7644,1798.4,1797.4,9.27361889]
[1745592501694,0.7644,1798.4,1797.4,9.218]
[1745592502102,3.7644,1798.4,1797.4,9.218]
[1745592502303,0.7644,1798.4,1797.5,0.05563469]
[1745592502498,0.7644,1798.4,1797.4,9.218]
[1745592502885,0.7644,1798.4,1797.5,9.22]
[1745592503091,0.7644,1798.4,1797.5,10.142]
[1745592503762,0.7644,1798.4,1797.6,0.05562352]
[1745592503985,0.7644,1798.7,1797.6,16.73462352]
[1745592504199,0.7644,1798.7,1797.6,16.679]
[1745592504776,0.7644,1798.7,1797.7,0.05561671]
[1745592504993,0.7644,1798.7,1797.7,1.72907838]
[1745592505384,0.785,1799.1,1797.8,9.42373488]
[1745592505724,1.2112724,1799.6,1798.2,0.55]
[1745592505917,1.2112724,1799.6,1798.4,0.55]
[1745592505918,0.785,1799.6,1798.4,0.55]
[1745592506224,0.785,1799.6,1798.5,16.73558175]
[1745592506514,0.785,1799.6,1798.6,1.67355818]
[1745592506679,1.20814387,1799.6,1798.6,1.67355818]
[1745592506873,0.785,1799.6,1798.6,1.67355818]
[1745592507484,3.0,1799.5,1798.5,16.68]
[1745592507819,3.7944,1799.4,1798.5,16.68]
[1745592507974,5.55720774,1799.5,1798.3,8.964]
[1745592507975,3.0,1799.1,1798.3,8.964]
[1745592508174,18.25541425,1799.6,1798.3,8.964]
[1745592508175,0.7762,1799.0,1798.3,8.964]
[1745592508704,0.7642,1799.5,1798.4,0.05559903]
[1745592509022,0.7642,1799.5,1798.5,16.68]
[1745592509331,5.60592348,1799.9,1798.5,16.68]
[1745592509332,0.8178,1799.9,1798.7,0.55]
[1745592509486,0.8178,1799.9,1798.7,0.60557437]
[1745592509885,0.8178,1799.9,1798.8,8.87373488]
[1745592510086,0.8178,1799.9,1798.9,8.964]
[1745592510418,0.8178,1799.9,1799.0,0.8964]
[1745592511100,0.05,1799.9,1799.1,0.0555719]
[1745592511749,0.05,1799.9,1799.0,0.8964]
[1745592511960,3.7582,1799.8,1798.9,8.964]
[1745592512152,0.7582,1799.8,1798.5,16.68]
[1745592512355,0.7582,1799.8,1798.6,10.63]
[1745592512561,3.7582,1799.8,1798.6,10.63]
[1745592512881,3.0,1799.7,1798.6,8.962]
[1745592513082,5.55667472,1799.7,1798.6,8.962]
[1745592513370,6.31449939,1799.8,1797.6,8.87373488]
[1745592513371,0.8055,1799.1,1797.6,8.87373488]
[1745592513528,0.8055,1799.1,1797.8,25.639]
[1745592513731,0.8055,1799.1,1798.2,6.50737609]
[1745592513968,0.8055,1799.1,1798.3,9.0175981]
[1745592514173,1.19365407,1799.6,1798.3,9.0175981]
[1745592514454,1.19365407,1799.6,1798.5,6.50737609]
[1745592514662,0.05,1799.9,1798.8,6.50737609]
[1745592514845,0.05,1799.9,1799.1,6.50737609]
[1745592515043,0.05,1799.9,1799.2,0.05555994]
[1745592515569,0.05,1799.9,1799.1,6.50737609]
[1745592515778,0.05,1799.9,1799.7,6.50737609]
[1745592515985,0.05,1799.9,1799.8,26.24454616]
[1745592516177,0.05,1799.9,1799.8,29.46419223]
[1745592516478,0.05,1799.9,1799.8,28.91419223]
[1745592516830,0.05,1799.9,1799.8,25.639]
[1745592517684,0.05,1799.9,1799.8,26.189]
[1745592517834,0.05,1800.9,1800.2,0.55]
[1745592518049,0.05,1800.9,1800.3,0.05552709]
[1745592518257,0.05,1800.9,1800.5,0.55]
[1745592518458,0.05,1800.9,1800.7,9.40795822]
[1745592518659,0.005,1801.8,1800.9,0.55]
[1745592518888,0.005,1801.8,1801.3,0.55]
[1745592519048,0.005,1801.8,1801.4,0.0554932]
[1745592519249,0.005,1801.8,1801.0,8.96]
[1745592519451,0.005,1801.8,1801.1,0.896]
[1745592519702,0.005,1801.8,1801.1,0.9515033]
[1745592520401,0.752,1801.7,1800.6,8.85795822]
[1745592520560,0.005,1801.8,1801.0,16.672]
[1745592520892,0.005,1801.8,1801.1,0.0555141]
[1745592521248,0.005,1801.8,1801.0,16.672]
[1745592521656,3.7614,1801.4,1800.2,0.41127204]
[1745592521894,3.7614,1801.4,1800.3,8.956]
[1745592521895,8.55202738,1801.2,1800.3,8.956]
[1745592522063,0.7614,1801.1,1800.3,8.956]
[1745592522457,0.7614,1800.8,1800.3,8.956]
[1745592522654,3.7614,1800.8,1800.3,8.956]
[1745592522955,0.37614,1800.7,1800.3,8.956]
[1745592523154,0.7614,1800.8,1800.2,16.665]
[1745592523155,6.31461134,1800.8,1800.2,16.665]
[1745592523396,8.5535849,1800.7,1800.2,16.665]
[1745592523694,0.8112,1800.6,1800.2,16.665]
[1745592523894,3.0,1800.4,1800.1,8.956]
[1745592524096,3.8112,1800.6,1799.6,0.05555695]
[1745592524389,3.0,1800.3,1799.7,8.956]
[1745592524694,0.38112,1800.5,1799.7,8.956]
[1745592524695,5.55506367,1800.2,1799.7,8.956]
[1745592524994,0.7606,1800.0,1799.7,8.956]
[1745592525297,3.0,1800.3,1799.7,8.956]
[1745592525460,0.7606,1800.4,1799.7,8.956]
[1745592525796,4.7301901,1800.4,1799.7,8.956]
[1745592526177,1.7301901,1800.4,1799.7,8.956]
[1745592526354,0.7606,1800.4,1799.7,8.956]
[1745592526867,6.3150732,1800.4,1799.7,8.956]
[1745592527062,0.7606,1800.4,1799.7,8.956]
[1745592527262,3.7606,1800.4,1799.7,8.956]
[1745592527464,0.37614,1801.3,1799.8,0.55]
[1745592527660,0.8173,1802.1,1801.0,8.85795822]
[1745592527861,0.8173,1802.5,1801.5,8.85795822]
[1745592528061,0.05,1802.9,1801.7,0.55]
[1745592528062,0.7566,1802.8,1801.7,0.55]
[1745592528267,0.7566,1802.8,1801.7,9.515]
[1745592528465,1.17136881,1802.8,1801.7,8.965]
[1745592528791,0.7566,1802.8,1801.7,8.965]
[1745592529190,0.05,1802.9,1801.8,0.75]
[1745592529500,0.05,1802.9,1802.7,0.55]
[1745592529706,0.05,1802.9,1802.8,26.23544471]
[1745592529869,0.05,1802.9,1802.8,26.18]
[1745592530072,0.05,1802.9,1802.8,25.63]
[1745592530409,0.05,1802.9,1802.8,35.03795822]
[1745592531123,0.05,1802.9,1802.8,34.63795822]
[1745592531441,0.05,1802.9,1802.8,25.78]
[1745592532128,0.05,1802.9,1802.8,25.23]
[1745592532637,0.05,1802.9,1802.8,28.303]
[1745592533880,0.05,1802.9,1802.8,16.665]
[1745592534086,0.05,1802.9,1802.8,34.48095822]
[1745592534793,0.05,1802.9,1802.8,35.03095822]
[1745592534993,0.05,1802.9,1802.8,26.173]
[1745592535928,0.05,1802.9,1802.8,25.623]
[1745592536131,0.05,1802.9,1802.8,28.7353]
[1745592536733,0.05,1802.9,1802.8,25.623]
[1745592537091,0.05,1802.9,1802.8,25.621]
[1745592537664,0.05,1802.9,1802.1,16.647]
[1745592537795,0.05,1802.9,1802.2,9.0114694]
[1745592538225,0.05,1802.9,1802.3,8.956]
[1745592538429,0.4183823,1803.5,1802.3,8.956]
[1745592538430,5.54100927,1804.8,1802.8,8.85795822]
[1745592538646,11.737877,1805.8,1802.4,0.95107034]
[1745592538647,0.09700927,1804.9,1804.3,3.0]
[1745592538803,0.09700927,1804.9,1804.7,0.55]
[1745592539141,0.4183823,1805.4,1804.9,0.55]
[1745592539323,0.4183823,1805.4,1805.1,0.55]
[1745592539492,0.4183823,1805.4,1805.0,9.484]
[1745592539690,0.4183823,1805.4,1804.9,0.55]
[1745592539691,0.4183823,1805.4,1804.4,16.645]
[1745592539892,0.4183823,1805.4,1804.5,9.484]
[1745592540095,0.4183823,1805.4,1804.6,0.05539714]
[1745592540523,0.4183823,1805.4,1804.7,0.55]
[1745592540721,0.4183823,1805.4,1804.6,0.05538232]
[1745592541034,3.0,1805.2,1804.0,9.484]
[1745592541331,5.53816574,1805.7,1803.7,16.645]
[1745592541332,0.7526,1806.3,1804.5,8.85795822]
[1745592541532,0.7526,1806.3,1804.4,3.0]
[1745592541693,0.11133019,1805.8,1804.7,0.55]
[1745592541925,0.8194,1805.7,1804.8,16.639]
[1745592542250,5.53700343,1806.1,1804.9,0.05539259]
[1745592542251,0.11114223,1805.6,1804.9,0.05539259]
[1745592542434,0.11114223,1805.6,1804.9,2.66943926]
[1745592542636,0.02,1806.7,1805.0,6.09015494]
[1745592542839,0.02,1806.7,1805.1,0.0553535]
[1745592543055,0.8199,1806.1,1805.1,10.0]
[1745592543564,0.8199,1806.1,1805.2,0.55]
[1745592543780,0.02,1806.7,1805.2,1.6659115]
[1745592543983,0.11137302,1805.8,1805.1,10.0]
[1745592544185,0.7612,1806.5,1805.1,10.0]
[1745592544325,0.7612,1806.5,1805.2,0.60537735]
[1745592544654,0.7612,1806.5,1805.2,0.55]
[1745592545158,0.7612,1806.5,1805.2,1.98297505]
[1745592545340,0.7612,1806.5,1805.4,0.55]
[1745592545524,0.7612,1806.5,1805.4,1.92760751]
[1745592545720,0.7612,1806.5,1805.6,0.55]
[1745592546077,0.7612,1806.5,1805.6,1.37760751]
[1745592546228,0.7612,1806.5,1805.7,1.37760751]
[1745592546428,0.7612,1806.5,1805.8,9.996]
[1745592546643,0.7612,1806.5,1805.5,0.05536427]
[1745592546856,6.31328767,1805.8,1804.8,9.996]
[1745592547022,0.63132877,1805.7,1804.8,9.996]
[1745592547248,0.89995635,1805.8,1804.8,9.996]
[1745592547573,0.12360397,1805.7,1804.9,0.05538695]
[1745592547774,0.12360397,1805.7,1804.8,9.996]
[1745592547929,0.12360397,1805.7,1805.0,0.05538697]
[1745592548266,0.12360397,1805.7,1804.8,9.996]
[1745592548635,0.51349437,1805.7,1804.9,0.05539006]
[1745592548837,0.12360397,1805.7,1804.9,3.60538541]
[1745592549149,0.1,1805.9,1804.9,3.60538541]
[1745592549387,0.1,1805.9,1805.1,0.55]
[1745592549791,0.1,1805.9,1805.2,1.02169024]
[1745592549997,0.1,1805.9,1805.3,3.605359]
[1745592550177,0.1,1805.9,1805.5,0.55]
[1745592550378,0.1,1805.9,1805.7,0.55]
[1745592550602,0.1,1805.9,1805.8,10.543]
[1745592551208,0.1,1805.9,1805.8,9.993]
[1745592551373,0.9172,1805.9,1805.2,9.99]
[1745592551708,0.9172,1805.9,1804.6,16.621]
[1745592551709,9.67515822,1805.6,1804.6,16.621]
[1745592551916,9.67515822,1805.6,1804.3,9.99]
[1745592551917,0.7982,1805.4,1804.3,9.99]
[1745592552081,3.0,1805.2,1804.3,9.99]
[1745592552470,0.1069725,1805.1,1804.3,9.99]
[1745592552714,3.0,1805.2,1804.3,9.99]
[1745592553231,0.7881,1805.1,1804.3,9.99]
[1745592553384,0.7938,1804.7,1803.9,16.621]
[1745592553587,3.0,1804.5,1803.9,16.621]
[1745592553922,0.7938,1804.7,1803.8,9.99]
[1745592554086,0.7938,1804.7,1803.9,1.05442639]
[1745592554289,3.0,1804.5,1803.8,9.99]
[1745592554487,3.0,1804.4,1803.8,9.99]
[1745592555184,9.31411223,1804.2,1803.3,9.99]
[1745592555514,0.7713,1804.2,1803.3,10.04544645]
[1745592555884,0.7975,1804.6,1803.4,3.0]
[1745592556083,0.7975,1804.6,1803.6,0.55]
[1745592556614,0.1,1805.9,1804.5,6.09152869]
[1745592556775,0.1,1805.9,1804.9,3.55]
[1745592557009,0.1,1805.9,1804.9,0.55]
[1745592557346,0.1,1805.9,1804.9,0.0553802]
[1745592558745,0.1,1805.9,1805.1,0.55]
[1745592558905,0.1,1805.9,1805.3,0.55]
[1745592559105,0.1,1805.9,1805.3,10.542]
[1745592559304,0.1,1805.9,1805.4,0.05537393]
[1745592559913,0.1,1805.9,1805.3,9.992]
[1745592560634,0.1,1805.9,1805.4,0.05538334]
[1745592561448,0.1,1805.9,1805.4,0.05537513]
[1745592562812,0.1,1805.9,1805.3,9.992]
[1745592563768,5.53777225,1805.8,1805.3,9.992]
[1745592564077,0.8179,1805.7,1804.6,27.22115287]
[1745592564233,0.8179,1805.7,1804.7,0.05538406]
[1745592564771,0.8179,1805.7,1804.6,27.22115287]
[1745592564948,6.35609,1805.7,1804.6,27.22115287]
[1745592565285,5.53879941,1805.5,1804.6,26.612]
[1745592565435,3.0,1805.5,1804.6,26.612]
[1745592565634,5.53877559,1805.5,1804.6,26.612]
[1745592565837,5.53922291,1805.4,1803.8,8.85795822]
[1745592566041,3.8179,1805.1,1803.9,9.988]
[1745592566256,0.7824,1804.6,1803.9,9.988]
[1745592566455,5.54285316,1804.2,1803.2,9.988]
[1745592566642,5.54171589,1804.5,1803.6,0.05544251]
[1745592566980,9.32395918,1804.6,1803.2,10.04344251]
[1745592567277,0.7603,1804.1,1803.2,9.988]
[1745592568475,0.7603,1804.1,1803.3,0.05544036]
[1745592568682,0.7603,1804.1,1803.3,1.0597844]
[1745592569007,0.7603,1804.1,1803.4,0.6054324]
[1745592569218,0.8076,1804.5,1803.4,0.6054324]
[1745592569397,0.8076,1804.5,1803.4,0.55]
[1745592569607,0.8076,1804.5,1803.6,0.55]
[1745592569912,0.8076,1804.5,1803.8,0.55]
[1745592570091,0.8076,1804.5,1803.9,0.0554252]
[1745592570292,0.8076,1804.5,1803.9,0.05542528]
[1745592570496,0.8076,1804.5,1803.3,1.00434404]
[1745592570695,3.0,1804.3,1803.2,9.988]
[1745592570901,14.39907423,1804.7,1803.2,9.988]
[1745592570902,3.0,1804.0,1803.2,9.988]
[1745592571212,3.7524,1804.2,1803.2,9.988]
[1745592571395,0.7524,1804.2,1803.2,9.988]
[1745592571595,0.7524,1804.2,1803.2,10.04345104]
[1745592571799,1.12764,1804.2,1803.3,1.0043451]
[1745592571971,0.7524,1804.2,1803.4,0.05544372]
[1745592572175,0.7524,1804.2,1803.3,1.05978392]
[1745592572403,0.7524,1804.2,1803.3,1.0043451]
[1745592572581,0.7524,1804.2,1803.3,1.05978617]
[1745592572902,0.7524,1804.6,1803.4,0.55]
[1745592573107,0.7524,1804.6,1803.5,0.05543477]
[1745592573417,3.0,1804.4,1803.3,1.0043451]
[1745592573572,0.3,1804.3,1803.4,0.05544249]
[1745592573774,3.0,1804.5,1803.4,0.05544249]
[1745592574011,0.7524,1804.6,1803.4,0.05544249]
[1745592574210,0.7524,1804.6,1803.4,0.60544249]
[1745592574422,0.7524,1804.6,1803.5,0.55]
[1745592574574,0.7524,1804.6,1803.6,0.05543509]
[1745592574911,3.0,1804.4,1803.2,9.988]
[1745592575110,0.7524,1804.6,1803.2,9.988]
[1745592575111,1.1271,1804.3,1803.2,9.988]
[1745592575272,0.8271,1804.3,1803.2,9.988]
[1745592575691,3.0,1804.1,1803.2,9.988]
[1745592576092,3.0,1804.2,1803.2,9.988]
[1745592576325,3.0,1804.1,1803.2,9.988]
[1745592576529,3.0,1804.0,1803.2,9.988]
[1745592576712,0.3,1803.9,1803.2,9.988]
[1745592576881,3.0,1804.1,1803.2,9.988]
[1745592577087,0.8271,1804.3,1803.2,10.04345624]
[1745592577287,0.8271,1804.3,1803.2,9.988]
[1745592577503,0.7774,1804.0,1803.2,9.988]
[1745592577796,6.32075686,1804.0,1803.2,9.988]
[1745592578126,0.7774,1804.0,1803.2,9.988]
[1745592579033,0.7774,1804.0,1803.3,0.0554467]
[1745592579395,0.7774,1804.0,1803.2,10.04344394]
[1745592579829,0.7774,1804.0,1803.2,9.988]
[1745592579984,0.7774,1804.0,1803.2,10.04344394]
[1745592580190,0.7956,1804.6,1803.3,1.00434439]
[1745592580418,3.0,1804.5,1803.3,1.00434439]
[1745592580599,0.7956,1804.6,1803.4,0.60543964]
[1745592581000,0.7956,1804.6,1803.6,0.55]
[1745592581421,0.7956,1804.6,1803.8,0.55]
[1745592581639,0.7953,1805.0,1804.0,0.55]
[1745592581834,0.7953,1805.0,1804.0,1.5659]
[1745592582334,0.7953,1805.0,1804.1,0.05541998]
[1745592582825,0.7953,1805.0,1804.0,1.5659]
[1745592583004,9.609,1805.4,1804.0,1.0159]
[1745592583408,5.53996379,1805.1,1804.0,1.0159]
[1745592583716,0.55399638,1805.0,1804.0,1.0159]
[1745592584116,5.53957791,1805.2,1803.9,10.2554]
[1745592584318,11.3871662,1805.0,1803.9,9.609]
[1745592584519,5.54165513,1804.6,1803.9,9.609]
[1745592584694,5.5408024,1804.8,1803.3,1.65074439]
[1745592584695,5.54183604,1804.5,1803.3,1.65074439]
[1745592584894,3.0,1804.3,1803.3,1.65074439]
[1745592585207,15.14883665,1804.8,1803.3,1.65074439]
[1745592585208,0.3,1804.2,1803.3,1.65074439]
[1745592585389,3.0,1804.1,1803.3,1.65074439]
[1745592585596,3.0,1804.0,1803.2,9.608]
[1745592585896,0.8048,1804.0,1803.2,9.608]
[1745592587636,3.0,1803.9,1803.2,9.608]
[1745592587929,0.8048,1804.0,1803.2,9.608]
[1745592589396,3.8048,1804.0,1803.2,9.608]
[1745592589741,3.38048,1803.9,1803.0,0.6464]
[1745592590798,0.38048,1803.9,1803.0,0.6464]
[1745592590993,0.8048,1804.0,1803.0,0.70185862]
[1745592591321,0.8048,1804.0,1803.0,0.6464]
[1745592591643,0.8048,1804.0,1803.0,0.7018568]
[1745592591942,0.8048,1804.0,1803.0,0.70185671]
[1745592592094,0.8048,1804.0,1803.0,0.6464]
[1745592592744,3.0,1803.9,1803.0,0.6464]
[1745592592911,0.8048,1804.0,1803.0,0.6464]
[1745592593114,3.0,1803.9,1803.0,0.6464]
[1745592593317,0.3,1803.8,1803.0,0.6464]
[1745592593842,8.84398358,1803.8,1803.0,0.6464]
[1745592594045,8.84398358,1803.8,1802.9,16.629]
[1745592594046,0.72255804,1803.8,1802.9,16.629]
[1745592594252,0.8329,1804.3,1803.2,0.6464]
[1745592594481,0.8329,1804.3,1803.3,9.343]
[1745592594746,6.37411125,1804.7,1803.4,0.60543675]
[1745592594949,0.63741113,1804.6,1803.4,0.60543675]
[1745592595250,0.8329,1804.7,1803.4,0.60543675]
[1745592595420,0.8329,1804.7,1803.6,0.55]
[1745592595620,0.2,1805.3,1803.3,9.343]
[1745592595621,0.751,1805.1,1804.0,0.55]
[1745592595825,0.751,1805.1,1804.1,9.342]
[1745592596549,9.29096572,1805.1,1804.1,9.342]
[1745592596754,0.92909657,1805.0,1804.1,9.342]
[1745592596968,3.751,1805.1,1804.1,9.342]
[1745592597246,0.751,1805.1,1804.1,9.342]
[1745592597746,9.29108639,1805.1,1804.1,9.342]
[1745592598051,3.0,1804.9,1804.1,9.342]
[1745592598221,3.0,1805.0,1804.1,9.342]
[1745592598406,3.0,1804.8,1804.1,9.342]
[1745592598609,3.0,1804.5,1804.1,9.342]
[1745592598851,3.0,1804.5,1803.9,0.6464]
[1745592598852,9.138683,1804.1,1803.2,0.6464]
[1745592599021,3.0,1804.4,1803.2,0.6464]
[1745592599232,3.0,1804.0,1803.2,0.6464]
[1745592599407,0.815,1803.9,1803.2,0.6464]
[1745592599613,3.815,1803.9,1803.2,0.6464]
[1745592599913,0.815,1803.9,1803.2,0.6464]
[1745592600209,3.815,1804.2,1803.2,0.6464]
[1745592600428,3.815,1804.2,1803.2,0.70185054]
[1745592600645,5.1041,1804.2,1803.2,0.6464]
[1745592600846,9.371296,1804.6,1803.3,0.05544869]
[1745592601054,9.3711083,1804.6,1803.4,0.6464]
[1745592601210,5.54247414,1804.3,1803.4,0.6464]
[1745592601415,3.0,1804.1,1803.4,0.6464]
[1745592601638,0.3,1804.0,1803.4,0.6464]
[1745592601824,3.0,1803.8,1803.3,9.076]
[1745592602020,3.0,1803.8,1803.1,0.7464]
[1745592602227,8.5439853,1803.8,1803.1,0.7464]
[1745592602626,3.0,1803.5,1803.1,0.1]
[1745592602914,8.54435644,1803.7,1803.1,0.1]
[1745592603120,8.54357321,1803.9,1803.1,0.1]
[1745592603340,9.37310977,1804.0,1803.1,0.1]
[1745592603540,5.54420163,1803.7,1803.1,0.1]
[1745592603851,8.54450267,1803.6,1803.1,0.1]
[1745592604214,8.54461107,1803.6,1803.1,0.1]
[1745592604425,0.85446111,1803.5,1803.1,0.1]
[1745592604826,3.0,1803.6,1803.1,0.1]
[1745592605015,0.8036,1803.3,1803.1,0.1]
[1745592605215,13.2297,1803.2,1803.1,0.1]
[1745592605451,5.95015436,1803.7,1803.1,0.1]
[1745592605637,27.63059349,1803.6,1803.1,0.1]
[1745592605867,0.8036,1803.6,1803.1,0.1]
[1745592606065,6.36250738,1804.0,1803.1,0.7464]
[1745592606277,3.0,1803.9,1803.1,0.7464]
[1745592606478,3.0,1803.7,1803.1,0.7464]
[1745592606783,3.0,1803.5,1803.1,0.1]
[1745592606952,23.215543,1803.6,1803.1,0.1]
[1745592606953,8.54542962,1803.3,1803.1,0.1]
[1745592607146,5.778945,1803.2,1803.1,0.1]
[1745592607361,3.4913,1803.2,1803.1,0.1]
[1745592607567,3.49145,1803.3,1803.1,0.1]
[1745592607768,0.7802,1804.2,1803.1,0.7464]
[1745592608102,1.19464413,1804.2,1803.1,0.7464]
[1745592608299,5.54307049,1804.1,1803.1,0.7464]
[1745592608451,1.19464413,1804.2,1803.1,0.7464]
[1745592608452,3.0,1803.9,1803.1,0.7464]
[1745592608997,3.0,1803.8,1803.1,0.1]
[1745592609281,3.0,1803.2,1803.1,0.1]
[1745592609517,24.42315653,1803.2,1803.1,0.1]
[1745592610049,0.7706,1802.9,1802.1,0.1]
[1745592610387,3.0,1802.8,1802.1,0.1]
[1745592610554,14.62426188,1803.4,1802.1,0.1]
[1745592610555,0.3,1802.7,1802.1,0.1]
[1745592610755,0.7794,1803.2,1802.1,0.1]
[1745592611001,3.0,1803.0,1802.1,0.1]
[1745592611169,8.54643525,1803.0,1802.1,0.1]
[1745592611371,3.0,1803.1,1802.1,0.1]
[1745592611568,3.0,1802.8,1802.1,0.1]
[1745592611878,5.84648485,1803.0,1802.1,0.1]
[1745592611879,0.3,1803.0,1802.1,0.1]
[1745592612081,3.0,1802.9,1802.1,0.1]
[1745592612248,8.54672606,1802.9,1802.1,0.1]
[1745592612454,0.7869,1802.4,1802.1,0.1]
[1745592612750,19.380672,1802.3,1802.1,0.1]
[1745592612955,33.57398592,1802.2,1802.1,0.1]
[1745592613150,3.0,1802.1,1801.2,8.823]
[1745592613361,3.0,1801.9,1801.2,8.823]
[1745592613697,3.40712503,1802.1,1801.2,8.823]
[1745592613900,0.7869,1802.4,1801.2,8.823]
[1745592614202,3.7869,1802.4,1801.2,11.43884]
[1745592614405,0.7869,1802.4,1801.4,0.6464]
[1745592614575,3.7869,1802.4,1801.4,0.6464]
[1745592614773,3.0,1802.3,1801.4,0.6464]
[1745592614995,3.0,1801.9,1801.1,0.6964]
[1745592615187,0.3,1801.8,1801.1,0.6964]
[1745592615673,1.20920384,1802.4,1801.1,0.6964]
[1745592615992,3.0,1801.7,1801.1,0.05]
[1745592616300,0.41431266,1801.9,1801.1,0.05]
[1745592616461,3.0,1802.0,1801.1,0.05]
[1745592617077,5.54959539,1802.0,1801.1,0.05]
[1745592617302,9.10484774,1801.9,1801.1,0.05]
[1745592617468,0.55495954,1801.9,1801.1,0.05]
[1745592617804,3.0,1801.7,1801.1,0.05]
[1745592618002,3.0,1801.4,1801.1,0.05]